Workbook

Sheet h in terms of r
B1: Contours of the Volume
B2: Function for a Cylinder
B4: This DIGMath module lets you investigate
C5: the contour diagrams
B6: of the volume function V =p r2h
B7: for a right-circular cylinder
B8: with h in terms of r.
A11: The contours shown correspond to V = 10, V = 30, and V = 50.
A13: Select another value ( 0 to 50) for V = | E13: =G13 -> 18 | G13: 18
J14: Trace along the contours at r0 = | N14: =L15/10 -> 2.4
L15: 24 | M15: =a+L15*(b-a)/100 -> -2.08
B16: The interval used is from r = 0 to r = 10.
J18: At the tracing point r0 = | M18: =x0 -> 2.4
A19: Click each item below for suggestions and investigations
B20: Item 1 | J20: the value of h on the contour with V = 10 is | P20: =Sheet2!B11 -> 0.55
B21: Item 2 | J21: the value of h on the contour with V = 30 is | P21: =Sheet2!B24 -> 1.66
B22: Item 3 | J22: the value of h on the contour with V = 50 is | P22: =Sheet2!B34 -> 2.76
B23: Item 4 | J23: =" the value of h on the contour with V = "&TEXT(D,"#")&" is" -> the value of h on the contour with V = 18 is | P23: =Sheet2!B44 -> 0.99
B24: Item 5
A28: To access/download all the DIGMath Apps for Calculus
A29: Click this link: | C29: DIGMath for Calculus
A31: Created by: Sheldon P. Gordon
A32: Farmingdale State College
A33: Development of this module was supported by the
A34: NSF's Division of Undergraduate Education
A35: under grants DUE-0310123 and DUE-0442160.

Sheet r in terms of h
B1: Contours of the Volume
B2: Function for a Cylinder
B4: This DIGMath module lets you investigate
C5: the contour diagrams
B6: of the volume function V =p r2h
B7: for a right-circular cylinder
B8: with r in terms of h.
A11: Three contours shown correspond to V = 10, V = 30, and V = 50.
A13: Select another value ( 0 to 50) for V = | E13: =G13 -> 20 | G13: 20
J14: Trace along the contours at h0 = | N14: =L15/10 -> 2.3
L15: 23 | M15: =a+L15*(b-a)/100 -> -2.16
B16: The interval used is from h = 0 to h = 10.
J18: At the tracing point h0 = | M18: =x00 -> 2.3
A19: Click each item below for suggestions and investigations
B20: Item 1 | J20: the value of r on the contour with V = 10 is | P20: =Sheet2!E11 -> 1.18
B21: Item 2 | J21: the value of r on the contour with V = 30 is | P21: =Sheet2!E24 -> 2.04
B22: Item 3 | J22: the value of r on the contour with V = 50 is | P22: =Sheet2!E34 -> 2.63
B23: Item 4 | J23: =" the value of r on the contour with V = "&TEXT(D,"#")&" is" -> the value of r on the contour with V = 18 is | P23: =Sheet2!E44 -> 1.66
B24: Item 5
A28: To access/download all the DIGMath Apps for Calculus
A29: Click this link: | C29: DIGMath for Calculus
A31: Created by: Sheldon P. Gordon
A32: Farmingdale State College
A33: Development of this module was supported by the
A34: NSF's Division of Undergraduate Education
A35: under grants DUE-0310123 and DUE-0442160.

Sheet Sheet2
A1: a = | B1: -4 | D1: a = | E1: -4 | G1: h | H1: V = 10 | I1: V = 30 | J1: V = 50 | K1: V = DD
A2: b = | B2: 4 | D2: b = | E2: 4 | G2: 0.01 | H2: =SQRT(10/G2/PI()) -> 17.8 | I2: =SQRT(30/G2/PI()) -> 30.9 | J2: =SQRT(50/G2/PI()) -> 39.9 | K2: =SQRT(DD/G2/PI()) -> 25.2
G3: 0.1 | H3: =SQRT(10/G3/PI()) -> 5.6 | I3: =SQRT(30/G3/PI()) -> 9.8 | J3: =SQRT(50/G3/PI()) -> 12.6 | K3: 8.0
G4: =G3+0.1 -> 0.2 | H4: 4.0 | I4: 6.9 | J4: 8.9 | K4: 5.6
G5: 0.3 | H5: 3.3 | I5: 5.6 | J5: 7.3 | K5: 4.6
A6: V = 10 | D6: V = 10 | G6: 0.4 | H6: 2.8 | I6: 4.9 | J6: 6.3 | K6: 4.0
A7: 0.1 | B7: =10/A7^2/PI() -> 318.3 | D7: 0.1 | E7: =SQRT(10/D7/PI()) -> 5.6 | G7: 0.5 | H7: 2.5 | I7: 4.4 | J7: 5.6 | K7: 3.6
A8: 5 | B8: =10/A8^2/PI() -> 0.1 | D8: 5 | E8: =SQRT(10/D8/PI()) -> 0.8 | G8: 0.6 | H8: 2.3 | I8: 4.0 | J8: 5.2 | K8: 3.3
A9: 10 | B9: 0.0 | D9: 10 | E9: =SQRT(10/D9/PI()) -> 0.6 | G9: 0.7 | H9: 2.1 | I9: 3.7 | J9: 4.8 | K9: 3.0
G10: 0.8 | H10: 2.0 | I10: 3.5 | J10: 4.5 | K10: 2.8
A11: =x0 -> 2.4 | B11: 0.6 | D11: =x00 -> 2.3 | E11: =SQRT(10/D11/PI()) -> 1.2 | G11: 0.9 | H11: 1.9 | I11: 3.3 | J11: 4.2 | K11: 2.7
A12: =x0 -> 2.4 | B12: 0.6 | D12: =x00 -> 2.3 | E12: =SQRT(10/D12/PI()) -> 1.2 | G12: 1 | H12: 1.8 | I12: 3.1 | J12: 4.0 | K12: 2.5
G13: 1.1 | H13: 1.7 | I13: 2.9 | J13: 3.8 | K13: 2.4
A14: =x0 -> 2.4 | B14: 0.6 | D14: =x00 -> 2.3 | E14: =SQRT(10/D14/PI()) -> 1.2 | G14: 1.2 | H14: 1.6 | I14: 2.8 | J14: 3.6 | K14: 2.3
G15: 1.3 | H15: 1.6 | I15: 2.7 | J15: 3.5 | K15: 2.2
A16: V =30 | D16: V =30 | G16: 1.4 | H16: 1.5 | I16: 2.6 | J16: 3.4 | K16: 2.1
A17: 0.1 | B17: =30/A17^2/PI() -> 954.9 | D17: 0.1 | E17: =SQRT(30/D17/PI()) -> 9.8 | G17: 1.5 | H17: 1.5 | I17: 2.5 | J17: 3.3 | K17: 2.1
A18: 5 | B18: =30/A18^2/PI() -> 0.4 | D18: 5 | E18: =SQRT(30/D18/PI()) -> 1.4 | G18: 1.6 | H18: 1.4 | I18: 2.4 | J18: 3.2 | K18: 2.0
A19: 10 | B19: 0.1 | D19: 10 | E19: =SQRT(30/D19/PI()) -> 1.0 | G19: 1.7 | H19: 1.4 | I19: 2.4 | J19: 3.1 | K19: 1.9
G20: 1.8 | H20: 1.3 | I20: 2.3 | J20: 3.0 | K20: 1.9
A21: =x0 -> 2.4 | B21: 1.7 | D21: =x00 -> 2.3 | E21: =SQRT(30/D21/PI()) -> 2.0 | G21: 1.9 | H21: 1.3 | I21: 2.2 | J21: 2.9 | K21: 1.8
A22: =x0+0.2 -> 2.6 | B22: 1.4 | D22: =x00+0.2 -> 2.5 | E22: =SQRT(30/D22/PI()) -> 2.0 | G22: 2 | H22: 1.3 | I22: 2.2 | J22: 2.8 | K22: 1.8
G23: 2.1 | H23: 1.2 | I23: 2.1 | J23: 2.8 | K23: 1.7
A24: =x0 -> 2.4 | B24: 1.7 | D24: =x00 -> 2.3 | E24: =SQRT(30/D24/PI()) -> 2.0 | G24: 2.2 | H24: 1.2 | I24: 2.1 | J24: 2.7 | K24: 1.7
G25: 2.3 | H25: 1.2 | I25: 2.0 | J25: 2.6 | K25: 1.7
A26: V = 50 | D26: V = 50 | G26: 2.4 | H26: 1.2 | I26: 2.0 | J26: 2.6 | K26: 1.6
A27: 0.1 | B27: =50/A27^2/PI() -> 1591.5 | D27: 0.1 | E27: =SQRT(50/D27/PI()) -> 12.6 | G27: 2.5 | H27: 1.1 | I27: 2.0 | J27: 2.5 | K27: 1.6
A28: 5 | B28: =50/A28^2/PI() -> 0.6 | D28: 5 | E28: =SQRT(50/D28/PI()) -> 1.8 | G28: 2.6 | H28: 1.1 | I28: 1.9 | J28: 2.5 | K28: 1.6
A29: 10 | B29: 0.2 | D29: 10 | E29: =SQRT(50/D29/PI()) -> 1.3 | G29: 2.7 | H29: 1.1 | I29: 1.9 | J29: 2.4 | K29: 1.5
G30: 2.8 | H30: 1.1 | I30: 1.8 | J30: 2.4 | K30: 1.5
A31: =x0 -> 2.4 | B31: 2.8 | D31: =x00 -> 2.3 | E31: =SQRT(50/D31/PI()) -> 2.6 | G31: 2.9 | H31: 1.0 | I31: 1.8 | J31: 2.3 | K31: 1.5
A32: =A31 -> 2.4 | B32: 2.8 | D32: =D31 -> 2.3 | E32: =SQRT(50/D32/PI()) -> 2.6 | G32: 3 | H32: 1.0 | I32: 1.8 | J32: 2.3 | K32: 1.5
G33: 3.1 | H33: 1.0 | I33: 1.8 | J33: 2.3 | K33: 1.4
A34: =x0 -> 2.4 | B34: 2.8 | D34: =x00 -> 2.3 | E34: =SQRT(50/D34/PI()) -> 2.6 | G34: 3.2 | H34: 1.0 | I34: 1.7 | J34: 2.2 | K34: =SQRT(DD/G34/PI()) -> 1.4
G35: 3.3 | H35: 1.0 | I35: 1.7 | J35: 2.2 | K35: 1.4
A36: ="V ="&TEXT(DD,"#.#") -> V =20. | D36: ="V ="&TEXT(DD,"#.#") -> V =20. | G36: 3.4 | H36: 1.0 | I36: 1.7 | J36: 2.2 | K36: 1.4
A37: 0.1 | B37: =D/A37^2/PI() -> 573.0 | D37: 0.1 | E37: =SQRT(DD/D37/PI()) -> 8.0 | G37: 3.5 | H37: 1.0 | I37: 1.7 | J37: 2.1 | K37: 1.3
A38: 5 | B38: =D/A38^2/PI() -> 0.2 | D38: 5 | E38: =SQRT(DD/D38/PI()) -> 1.1 | G38: 3.6 | H38: 0.9 | I38: 1.6 | J38: 2.1 | K38: 1.3
A39: 10 | B39: =D/A39^2/PI() -> 0.1 | D39: 10 | E39: =SQRT(DD/D39/PI()) -> 0.8 | G39: 3.7 | H39: 0.9 | I39: 1.6 | J39: 2.1 | K39: 1.3
G40: 3.8 | H40: 0.9 | I40: 1.6 | J40: 2.0 | K40: 1.3
A41: =x0 -> 2.4 | B41: =D/A41^2/PI() -> 1.0 | D41: =x00 -> 2.3 | E41: =SQRT(DD/D41/PI()) -> 1.7 | G41: 3.9 | H41: 0.9 | I41: 1.6 | J41: 2.0 | K41: 1.3
A42: =A41 -> 2.4 | B42: =D/A42^2/PI() -> 1.0 | D42: =D41 -> 2.3 | E42: =SQRT(DD/D42/PI()) -> 1.7 | G42: 4 | H42: 0.9 | I42: 1.5 | J42: 2.0 | K42: 1.3
G43: 4.1 | H43: 0.9 | I43: 1.5 | J43: 2.0 | K43: 1.2
A44: =x0 -> 2.4 | B44: =D/A44^2/PI() -> 1.0 | D44: =x00 -> 2.3 | E44: =SQRT(DD/D44/PI()) -> 1.7 | G44: 4.2 | H44: 0.9 | I44: 1.5 | J44: 1.9 | K44: 1.2
G45: 4.3 | H45: 0.9 | I45: 1.5 | J45: 1.9 | K45: 1.2
G46: 4.4 | H46: 0.9 | I46: 1.5 | J46: 1.9 | K46: 1.2
G47: 4.5 | H47: 0.8 | I47: 1.5 | J47: 1.9 | K47: 1.2
G48: 4.6 | H48: 0.8 | I48: 1.4 | J48: 1.9 | K48: 1.2
G49: 4.7 | H49: 0.8 | I49: 1.4 | J49: 1.8 | K49: 1.2
G50: 4.8 | H50: 0.8 | I50: 1.4 | J50: 1.8 | K50: 1.2
G51: 4.9 | H51: 0.8 | I51: 1.4 | J51: 1.8 | K51: 1.1
G52: 5 | H52: 0.8 | I52: 1.4 | J52: 1.8 | K52: 1.1
G53: 5.1 | H53: 0.8 | I53: 1.4 | J53: 1.8 | K53: 1.1
G54: 5.2 | H54: 0.8 | I54: 1.4 | J54: 1.7 | K54: 1.1
G55: 5.3 | H55: 0.8 | I55: 1.3 | J55: 1.7 | K55: 1.1
G56: 5.4 | H56: 0.8 | I56: 1.3 | J56: 1.7 | K56: 1.1
G57: 5.5 | H57: 0.8 | I57: 1.3 | J57: 1.7 | K57: 1.1
G58: 5.6 | H58: 0.8 | I58: 1.3 | J58: 1.7 | K58: 1.1
G59: 5.7 | H59: 0.7 | I59: 1.3 | J59: 1.7 | K59: 1.1
G60: 5.8 | H60: 0.7 | I60: 1.3 | J60: 1.7 | K60: 1.0
G61: 5.9 | H61: 0.7 | I61: 1.3 | J61: 1.6 | K61: 1.0
G62: 6 | H62: 0.7 | I62: 1.3 | J62: 1.6 | K62: 1.0
G63: 6.1 | H63: 0.7 | I63: 1.3 | J63: 1.6 | K63: 1.0
G64: 6.2 | H64: 0.7 | I64: 1.2 | J64: 1.6 | K64: 1.0
G65: 6.3 | H65: 0.7 | I65: 1.2 | J65: 1.6 | K65: 1.0
G66: 6.4 | H66: 0.7 | I66: 1.2 | J66: 1.6 | K66: =SQRT(DD/G66/PI()) -> 1.0
G67: 6.5 | H67: =SQRT(10/G67/PI()) -> 0.7 | I67: =SQRT(30/G67/PI()) -> 1.2 | J67: =SQRT(50/G67/PI()) -> 1.6 | K67: 1.0
G68: =G67+0.1 -> 6.6 | H68: 0.7 | I68: 1.2 | J68: 1.6 | K68: 1.0
G69: 6.7 | H69: 0.7 | I69: 1.2 | J69: 1.5 | K69: 1.0
G70: 6.8 | H70: 0.7 | I70: 1.2 | J70: 1.5 | K70: 1.0
G71: 6.9 | H71: 0.7 | I71: 1.2 | J71: 1.5 | K71: 1.0
G72: 7 | H72: 0.7 | I72: 1.2 | J72: 1.5 | K72: 1.0
G73: 7.1 | H73: 0.7 | I73: 1.2 | J73: 1.5 | K73: 0.9
G74: 7.2 | H74: 0.7 | I74: 1.2 | J74: 1.5 | K74: 0.9
G75: 7.3 | H75: 0.7 | I75: 1.1 | J75: 1.5 | K75: 0.9
G76: 7.4 | H76: 0.7 | I76: 1.1 | J76: 1.5 | K76: 0.9
G77: 7.5 | H77: 0.7 | I77: 1.1 | J77: 1.5 | K77: 0.9
G78: 7.6 | H78: 0.6 | I78: 1.1 | J78: 1.4 | K78: 0.9
G79: 7.7 | H79: 0.6 | I79: 1.1 | J79: 1.4 | K79: 0.9
G80: 7.8 | H80: 0.6 | I80: 1.1 | J80: 1.4 | K80: 0.9
G81: 7.9 | H81: 0.6 | I81: 1.1 | J81: 1.4 | K81: 0.9
G82: 8 | H82: 0.6 | I82: 1.1 | J82: 1.4 | K82: 0.9
G83: 8.1 | H83: 0.6 | I83: 1.1 | J83: 1.4 | K83: 0.9
G84: 8.2 | H84: 0.6 | I84: 1.1 | J84: 1.4 | K84: 0.9
G85: 8.3 | H85: 0.6 | I85: 1.1 | J85: 1.4 | K85: 0.9
G86: 8.4 | H86: 0.6 | I86: 1.1 | J86: 1.4 | K86: 0.9
G87: 8.5 | H87: 0.6 | I87: 1.1 | J87: 1.4 | K87: 0.9
G88: 8.6 | H88: 0.6 | I88: 1.1 | J88: 1.4 | K88: 0.9
G89: 8.7 | H89: 0.6 | I89: 1.0 | J89: 1.4 | K89: 0.9
G90: 8.8 | H90: 0.6 | I90: 1.0 | J90: 1.3 | K90: 0.9
G91: 8.9 | H91: 0.6 | I91: 1.0 | J91: 1.3 | K91: 0.8
G92: 9 | H92: 0.6 | I92: 1.0 | J92: 1.3 | K92: 0.8
G93: 9.1 | H93: 0.6 | I93: 1.0 | J93: 1.3 | K93: 0.8
G94: 9.2 | H94: 0.6 | I94: 1.0 | J94: 1.3 | K94: 0.8
G95: 9.3 | H95: 0.6 | I95: 1.0 | J95: 1.3 | K95: 0.8
G96: 9.4 | H96: 0.6 | I96: 1.0 | J96: 1.3 | K96: 0.8
G97: 9.5 | H97: 0.6 | I97: 1.0 | J97: 1.3 | K97: 0.8
G98: 9.6 | H98: 0.6 | I98: 1.0 | J98: 1.3 | K98: 0.8
G99: 9.7 | H99: 0.6 | I99: 1.0 | J99: 1.3 | K99: 0.8
G100: 9.8 | H100: 0.6 | I100: 1.0 | J100: 1.3 | K100: 0.8
G101: 9.9 | H101: 0.6 | I101: 1.0 | J101: 1.3 | K101: 0.8
G102: 10 | H102: 0.6 | I102: 1.0 | J102: 1.3 | K102: 0.8
